bitfinex/quotes_ETHUSD_20241013
["timestamp","ask_amount","ask_price","bid_price","bid_amount"]
[1728857388942,4.02435,2484.9,2484.4,0.484726]
[1728857389675,4.02435,2484.9,2484.4,4.509766]
[1728857390644,4.02435,2484.9,2484.5,4.06472741]
[1728857392334,4.02414,2485.0,2484.5,4.06464741]
[1728857393581,4.02432,2484.9,2484.5,0.03978741]
[1728857393784,4.02432,2484.9,2484.5,0.97946375]
[1728857394786,4.02432,2484.9,2484.6,0.7585]
[1728857394988,4.02416,2485.0,2484.6,0.7585]
[1728857395377,4.02416,2485.0,2484.7,0.03978741]
[1728857395553,8.04773,2485.2,2484.7,4.06427741]
[1728857395798,4.02327,2485.6,2485.0,4.80745]
[1728857395996,4.02334,2485.5,2485.1,4.02398]
[1728857396309,4.02334,2485.5,2485.1,4.06359313]
[1728857396699,4.84358,2485.8,2485.1,4.06359313]
[1728857396700,4.02315,2485.7,2485.1,4.06359313]
[1728857397231,4.02298,2485.8,2485.2,4.02378]
[1728857397433,4.02298,2485.8,2485.3,5.23644482]
[1728857397643,4.02263,2486.0,2485.4,4.82278]
[1728857397843,4.0227,2485.9,2485.4,4.82278]
[1728857398010,4.02301,2485.7,2485.4,0.7993]
[1728857398199,4.02318,2485.6,2485.5,0.03949696]
[1728857399224,4.02318,2485.6,2485.2,0.7656]
[1728857399406,4.02318,2485.6,2485.5,0.03949696]
[1728857399617,4.02318,2485.6,2485.2,1.58625918]
[1728857399804,4.02318,2485.6,2485.5,0.03949696]
[1728857400004,4.02334,2485.5,2485.2,0.7656]
[1728857401047,4.02317,2485.6,2485.2,0.7656]
[1728857401202,4.02311,2485.7,2485.2,0.7656]
[1728857401406,4.02311,2485.7,2485.2,1.58624918]
[1728857402130,4.02341,2485.5,2485.2,1.58624918]
[1728857402641,4.02341,2485.5,2485.2,0.7656]
[1728857402852,0.7894,2485.8,2484.9,0.8227]
[1728857403024,4.02394,2485.2,2484.9,0.8227]
[1728857403210,4.02336,2485.5,2484.9,0.8227]
[1728857403211,8.68622516,2485.8,2484.9,4.2396418]
[1728857403410,4.02262,2486.0,2485.4,3.4169418]
[1728857403639,4.02262,2486.0,2485.6,0.8227]
[1728857403843,4.02272,2485.9,2485.6,0.8227]
[1728857404706,4.02293,2485.8,2485.6,0.8227]
[1728857404955,4.02287,2485.8,2485.3,0.8227]
[1728857405246,4.02319,2485.6,2485.3,0.8227]
[1728857405415,4.02319,2485.6,2485.3,1.307351]
[1728857405622,4.02319,2485.6,2485.4,0.03720037]
[1728857406949,4.02319,2485.6,2485.3,0.8227]
[1728857407158,4.02319,2485.6,2485.5,0.03720037]
[1728857407444,4.02297,2485.8,2485.3,0.8227]
[1728857407649,4.02319,2485.6,2485.5,0.03709877]
[1728857407852,4.02319,2485.6,2485.3,0.8227]
[1728857408059,4.02319,2485.6,2485.5,0.03709877]
[1728857408212,4.02319,2485.6,2485.3,0.8227]
[1728857408406,4.02317,2485.6,2485.5,0.03709877]
[1728857408731,4.02333,2485.5,2485.3,0.8227]
[1728857409108,4.02317,2485.6,2485.3,0.8227]
[1728857410145,8.04643,2485.6,2485.3,0.8227]
[1728857410547,0.7894,2486.0,2485.0,3.84090598]
[1728857410548,0.7894,2486.0,2485.0,4.65640598]
[1728857410853,4.02363,2485.4,2485.0,5.26359418]
[1728857411009,4.02363,2485.4,2485.1,0.92877942]
[1728857412950,0.7618,2485.8,2484.4,0.7836]
[1728857413154,4.02378,2485.3,2484.6,4.02469]
[1728857413313,4.02378,2485.3,2484.7,4.02451]
[1728857413314,4.02391,2485.2,2484.7,4.02451]
[1728857413521,4.02391,2485.2,2484.8,0.80492]
[1728857414582,4.02409,2485.1,2484.8,0.80492]
[1728857414861,4.02451,2484.8,2484.4,4.80862]
[1728857415159,4.02451,2484.8,2484.4,0.7836]
[1728857415160,4.02471,2484.7,2484.4,0.7836]
[1728857415980,4.02495,2484.5,2484.2,0.806]
[1728857416279,4.02545,2484.2,2483.9,0.806]
[1728857416440,8.05037,2484.4,2483.9,0.806]
[1728857416622,4.02529,2484.3,2483.9,0.806]
[1728857416823,4.02511,2484.4,2483.9,0.806]
[1728857417045,4.02511,2484.4,2483.9,4.83191]
[1728857417261,8.05032,2484.4,2484.0,0.885786]
[1728857417465,4.02528,2484.3,2484.0,0.885786]
[1728857418322,4.02546,2484.2,2484.0,0.885786]
[1728857418854,4.02511,2484.4,2484.0,0.885786]
[1728857419364,4.02511,2484.4,2484.1,0.0358007]
[1728857420225,8.05034,2484.4,2484.1,0.0358007]
[1728857420723,4.02536,2484.3,2484.1,0.0358007]
[1728857420920,4.02511,2484.4,2484.1,0.0358007]
[1728857421761,4.02529,2484.3,2484.1,0.0358007]
[1728857421961,4.02511,2484.4,2484.1,0.0358007]
[1728857422186,4.02544,2484.2,2484.1,0.0358007]
[1728857422478,4.02544,2484.2,2483.9,0.806]
[1728857422683,4.02544,2484.2,2484.1,0.0358007]
[1728857422991,4.0261,2483.8,2483.6,0.8116]
[1728857423295,4.0261,2483.8,2483.4,0.8116]
[1728857423482,8.05176,2484.0,2483.4,8.86496]
[1728857423658,8.05176,2484.0,2483.5,1.22819018]
[1728857423858,4.02587,2484.0,2483.5,1.22819018]
[1728857424083,4.02587,2484.0,2483.5,5.25476018]
[1728857424780,4.02587,2484.0,2483.6,4.02641]
[1728857424958,4.02587,2484.0,2483.6,5.03569502]
[1728857425285,4.02587,2484.0,2483.6,1.00928502]
[1728857425980,4.02594,2483.9,2483.6,1.00928502]
[1728857426278,4.02594,2483.9,2483.4,4.83825]
[1728857426279,4.02594,2483.9,2483.4,4.83823]
[1728857426786,4.02587,2484.0,2483.4,4.83823]
[1728857427101,4.02605,2483.9,2483.4,4.83818]
[1728857427303,4.0261,2483.8,2483.4,4.83818]
[1728857427451,4.02587,2484.0,2483.5,4.02653]
[1728857427656,8.05177,2484.0,2483.5,4.02653]
[1728857428594,0.7961,2484.2,2483.4,2.03981118]
[1728857428809,0.7961,2484.2,2483.1,0.8149]
[1728857428810,3.7718,2484.0,2483.1,0.8149]
[1728857429099,4.02691,2483.3,2483.1,0.8149]
[1728857429686,4.02691,2483.3,2482.8,4.84252]
[1728857429908,0.7718,2483.5,2482.8,4.84252]
[1728857429909,4.79849,2483.5,2482.8,4.84252]
[1728857430078,4.79849,2483.5,2482.1,4.02884]
[1728857430079,4.02602,2483.9,2483.4,4.02671]
[1728857430272,4.02623,2483.8,2483.3,0.8149]
[1728857430478,3.0,2484.0,2483.3,0.8149]
[1728857430479,4.02633,2483.7,2483.3,0.8149]
[1728857431018,4.0261,2483.8,2483.3,4.84171]
[1728857431217,4.0261,2483.8,2483.4,0.886865]
[1728857433522,4.02649,2483.6,2483.3,0.8149]
[1728857434013,4.02663,2483.5,2483.0,4.77754]
[1728857434736,8.05299,2483.6,2483.1,4.02721]
[1728857435517,4.02636,2483.7,2483.0,0.7503]
[1728857435730,1.207236,2483.6,2483.2,0.10932487]
[1728857435929,1.207236,2483.6,2483.0,0.7503]
[1728857435930,4.02687,2483.4,2483.1,0.10572514]
[1728857436086,4.02687,2483.4,2483.0,0.7503]
[1728857436505,4.02706,2483.2,2483.0,0.7503]
[1728857436837,4.02706,2483.2,2483.1,0.10572514]
[1728857437419,4.02706,2483.2,2482.8,4.8059]
[1728857437420,4.02716,2483.2,2482.8,0.7782]
[1728857437598,4.02746,2483.0,2482.8,0.7782]
[1728857437939,4.02746,2483.0,2482.6,0.7712]
[1728857439092,4.02685,2483.4,2482.6,4.1881418]
[1728857439436,4.09602446,2483.9,2483.4,4.02671]
[1728857439733,3.0,2483.8,2483.4,1.14705618]
[1728857439943,4.02636,2483.7,2483.2,4.02694]
[1728857440237,7.02609,2483.8,2483.2,4.02694]
[1728857440447,4.02643,2483.6,2483.2,4.02694]
[1728857440737,7.02609,2483.8,2483.2,4.02694]
[1728857441038,7.02609,2483.8,2483.3,4.511234]
[1728857441599,11.05232,2483.8,2483.3,4.511234]
[1728857442030,7.02609,2483.8,2483.3,0.484354]
[1728857442232,7.02609,2483.8,2483.2,4.02692]
[1728857442497,7.02609,2483.8,2483.1,0.8166]
[1728857442498,4.02652,2483.6,2483.1,4.84369]
[1728857442727,4.02652,2483.6,2483.2,4.02704]
[1728857443360,4.02666,2483.5,2483.1,0.8166]
[1728857444023,4.02652,2483.6,2483.1,0.8166]
[1728857444222,4.02698,2483.3,2482.9,0.7773]
[1728857444614,4.02713,2483.2,2482.9,0.7773]
[1728857445524,4.02698,2483.3,2482.7,4.02777]
[1728857445730,4.02722,2483.1,2482.7,4.02777]
[1728857445928,4.02722,2483.1,2482.6,0.7773]
[1728857446131,4.02747,2483.0,2482.6,0.7773]
[1728857446448,4.02722,2483.1,2482.6,0.7773]
[1728857446614,4.027,2483.3,2482.6,1.257841]
[1728857446955,4.02737,2483.1,2482.6,5.285861]
[1728857448144,4.02703,2483.3,2482.6,1.257841]
[1728857448549,4.02723,2483.1,2482.6,5.285791]
[1728857448721,4.02708,2483.2,2482.7,4.02774]
[1728857448919,4.02708,2483.2,2482.7,8.05549]
[1728857449114,4.02708,2483.2,2482.7,8.9868231]
[1728857449720,4.02708,2483.2,2482.7,4.9590731]
[1728857449931,4.02703,2483.3,2482.7,4.9590731]
[1728857450120,4.02723,2483.1,2482.7,4.9590731]
[1728857450562,4.02723,2483.1,2482.8,0.10593593]
[1728857450758,4.0274,2483.0,2482.8,0.10593593]
[1728857451074,4.0274,2483.0,2482.9,0.10593593]
[1728857451214,4.8552,2483.0,2482.9,0.10593593]
[1728857451420,4.8552,2483.0,2482.3,0.7716]
[1728857451421,4.02772,2482.8,2482.3,0.7716]
[1728857451657,4.02787,2482.7,2482.3,4.80007]
[1728857452875,4.02765,2482.9,2482.3,4.80007]
[1728857453083,4.0274,2483.0,2482.5,4.02809]
[1728857454137,3.0,2483.0,2482.6,4.02802]
[1728857454483,3.0,2483.0,2482.6,4.02795]
[1728857455577,4.02787,2482.7,2482.3,0.7716]
[1728857455742,4.0283,2482.5,2482.0,0.774]
[1728857455941,4.02837,2482.4,2482.0,4.80298]
[1728857456454,4.0283,2482.5,2482.0,8.83196]
[1728857456662,8.05665,2482.5,2482.0,4.80298]
[1728857456853,4.0283,2482.5,2482.0,4.80298]
[1728857457062,4.02836,2482.4,2482.0,4.80298]
[1728857457246,4.02836,2482.4,2482.0,0.774]
[1728857457886,4.02836,2482.4,2482.0,4.803]
[1728857458055,4.0281,2482.6,2482.0,5.686221]
[1728857458420,4.0281,2482.6,2482.1,4.02881]
[1728857458737,4.02844,2482.4,2482.0,0.774]
[1728857458945,4.02844,2482.4,2482.0,4.803]
[1728857459356,4.02854,2482.3,2482.0,0.774]
[1728857459565,4.02854,2482.3,2481.8,8.84344]
[1728857459784,4.02871,2482.2,2481.8,6.04024818]
[1728857459986,4.81474,2482.3,2481.8,0.785]
[1728857460188,4.02869,2482.2,2481.8,0.785]
[1728857460409,4.02885,2482.1,2481.8,0.785]
[1728857461208,4.02869,2482.2,2481.8,0.785]
[1728857461498,4.02893,2482.1,2481.6,4.81632]
[1728857461700,4.02869,2482.2,2481.6,4.81632]
[1728857461868,4.02869,2482.2,2481.7,4.02948]
[1728857462266,4.02846,2482.4,2481.9,4.02906]
[1728857462600,4.02821,2482.5,2481.9,4.02906]
[1728857462902,4.02862,2482.3,2481.8,4.02932]
[1728857463707,4.910927,2482.4,2481.9,4.02912]
[1728857464210,8.939367,2482.4,2481.9,4.02912]
[1728857464560,4.910927,2482.4,2481.9,4.02912]
[1728857464772,4.910927,2482.4,2481.6,4.2037418]
[1728857464773,4.0287,2482.2,2481.7,4.02945]
[1728857464979,4.0287,2482.2,2481.8,4.02932]
[1728857465607,4.0287,2482.2,2481.9,0.10381517]
[1728857465973,4.0286,2482.3,2481.8,4.0293]
[1728857466175,0.7693,2482.6,2482.0,0.10381517]
[1728857466176,4.79746,2482.6,2482.0,0.10381517]
[1728857466414,4.79746,2482.6,2482.2,4.02867]
[1728857466558,4.79746,2482.6,2482.1,0.88672972]
[1728857466871,4.79746,2482.6,2482.2,4.02866]
[1728857467072,10.842787,2482.7,2482.2,4.02866]
[1728857467375,7.44,2482.7,2482.4,4.02834]
[1728857467892,7.44,2482.7,2482.5,0.10373513]
[1728857468067,4.02783,2482.8,2482.2,4.02855]
[1728857468258,4.02783,2482.8,2482.3,4.02852]
[1728857468488,4.02755,2482.9,2482.4,4.02835]
[1728857468662,4.79301,2483.0,2482.4,4.84441351]
[1728857468863,4.02723,2483.1,2482.6,4.02793]
[1728857469116,4.0274,2483.0,2482.6,4.02793]
[1728857469407,4.0274,2483.0,2482.7,0.10393878]
[1728857469613,4.02763,2482.9,2482.7,0.10393878]
[1728857470212,4.02763,2482.9,2482.8,0.10393878]
[1728857470429,4.02725,2483.1,2482.8,0.10393878]
[1728857470430,3.0,2483.1,2482.8,0.10393878]
[1728857470563,4.02754,2482.9,2482.5,0.8008]
[1728857470901,4.02754,2482.9,2482.6,0.10393878]
[1728857471133,7.02735,2483.1,2482.6,0.10393878]
[1728857471296,11.05471,2483.1,2482.6,0.10393878]
[1728857471738,4.0274,2483.0,2482.6,0.10393878]
[1728857472834,7.44,2483.3,2482.6,0.10393878]
[1728857472835,7.44,2483.3,2482.9,4.02741]
[1728857473037,4.02651,2483.6,2483.0,0.7542]
[1728857473330,9.85677516,2483.8,2483.0,0.10373509]
[1728857473331,4.02698,2483.3,2483.0,0.10373509]
[1728857473839,4.02698,2483.3,2483.1,0.10350962]
[1728857473999,4.02698,2483.3,2482.8,4.02769]
[1728857474336,4.02689,2483.3,2483.2,0.10350962]
[1728857474539,4.02689,2483.3,2482.9,4.02753]
[1728857474909,4.02689,2483.3,2483.0,0.10350962]
[1728857475618,4.02708,2483.2,2483.0,0.10350962]
[1728857476051,4.02708,2483.2,2482.7,4.85786]
[1728857476257,4.02708,2483.2,2483.1,0.10350962]
[1728857476453,4.8592,2483.3,2482.4,0.767]
[1728857476751,4.8592,2483.3,2482.5,4.02814]
[1728857476752,4.02739,2483.0,2482.5,4.02814]
[1728857477317,4.0271,2483.2,2482.6,7.4449518]
[1728857477652,4.0271,2483.2,2482.7,4.77236518]
[1728857480617,4.0271,2483.2,2482.8,0.10321135]
[1728857480811,4.0271,2483.2,2482.8,4.13088135]
[1728857481012,3.0,2483.3,2482.9,4.78873]
[1728857481436,3.0,2483.3,2483.0,0.10317499]
[1728857481636,7.027,2483.3,2483.0,0.10317499]
[1728857482576,4.027,2483.3,2483.0,0.10317499]
[1728857482890,5.68988516,2483.5,2483.0,0.59238249]
[1728857483167,4.02681,2483.4,2483.0,0.10317499]
[1728857483371,1.66327516,2483.6,2483.0,4.13043499]
[1728857483581,4.02632,2483.7,2483.3,4.02688]
[1728857483871,7.44,2483.8,2483.3,4.64471398]
[1728857484044,5.68896516,2484.1,2483.5,7.4433618]
[1728857484372,4.02576,2484.0,2483.5,8.0529]
[1728857484577,4.02576,2484.0,2483.6,0.10299319]
[1728857484781,4.02569,2484.1,2483.6,4.12937319]
[1728857485833,4.02569,2484.1,2483.6,5.02563251]
[1728857486430,8.05137,2484.1,2483.6,5.02563251]
[1728857487070,8.05136,2484.1,2483.6,5.02563251]
[1728857487243,4.02568,2484.1,2483.6,5.02563251]
[1728857487844,7.02546,2484.2,2483.6,5.02563251]
[1728857488052,4.02561,2484.1,2483.6,5.02563251]
[1728857488282,4.02586,2484.0,2483.6,0.10299319]
[1728857488955,4.02561,2484.1,2483.6,4.12937319]
[1728857490956,4.02561,2484.1,2483.7,4.02622]
[1728857491370,4.02561,2484.1,2483.8,0.0920945]
[1728857491697,4.02561,2484.1,2483.6,4.02639]
[1728857491881,4.02561,2484.1,2483.9,0.0920945]
[1728857492189,4.02539,2484.3,2483.8,4.02608]
[1728857492388,4.02539,2484.3,2484.0,0.0920945]
[1728857492695,4.02514,2484.4,2483.8,4.02608]
[1728857492850,7.84599,2484.5,2484.1,0.0920945]
[1728857493049,4.02513,2484.4,2484.0,4.02568]
[1728857493250,4.02513,2484.4,2484.2,0.0920945]
[1728857493530,4.02513,2484.4,2484.0,4.906228]
[1728857493987,4.02513,2484.4,2484.1,0.0920945]
[1728857494349,4.02513,2484.4,2484.0,0.880548]
[1728857494807,4.02513,2484.4,2484.0,4.906288]
[1728857495293,4.02513,2484.4,2484.1,0.0920945]
[1728857496471,4.02513,2484.4,2484.0,0.880548]
[1728857496672,4.02513,2484.4,2484.2,0.0920945]
[1728857496993,4.02529,2484.3,2484.0,0.880548]
[1728857497194,4.02512,2484.4,2484.0,0.880548]
[1728857497406,7.02495,2484.5,2484.1,0.5660228]
[1728857497616,0.8162,2484.7,2484.1,0.6463325]
[1728857497918,4.02449,2484.8,2484.4,4.79001]
[1728857498063,4.02449,2484.8,2484.4,0.7649]
[1728857498264,4.0247,2484.7,2484.4,0.7649]
[1728857500104,4.02495,2484.5,2484.2,0.7853]
[1728857500307,4.0247,2484.7,2484.2,2.06725146]
[1728857500518,8.04948,2484.7,2484.2,2.06725146]
[1728857500819,4.02505,2484.5,2484.2,0.7853]
[1728857500966,4.02529,2484.3,2483.9,0.789]
[1728857501172,4.02576,2484.0,2483.5,4.81553]
[1728857501396,4.02595,2483.9,2483.5,1.61224718]
[1728857502266,8.05162,2484.0,2483.5,5.63873718]
[1728857502471,4.02596,2483.9,2483.5,1.61224718]
[1728857503169,4.02596,2483.9,2483.5,5.63880718]
[1728857503411,4.02596,2483.9,2483.6,1.3082359]
[1728857503595,8.05167,2484.0,2483.6,1.3082359]
[1728857503798,8.05162,2484.0,2483.6,1.3082359]
[1728857504512,0.8094,2484.0,2483.2,0.7923]
[1728857504824,4.0261,2483.8,2483.3,4.02679]
[1728857504968,4.02625,2483.7,2483.2,4.2092418]
[1728857505297,4.02625,2483.7,2483.2,9.05983198]
[1728857506981,4.02625,2483.7,2483.2,13.08680198]
[1728857507315,7.02572,2484.1,2483.6,4.02638]
[1728857507479,4.02578,2484.0,2483.6,4.02638]
[1728857507684,4.02572,2484.1,2483.7,0.7837]
[1728857508214,8.05142,2484.1,2483.7,0.7837]
[1728857508385,4.0257,2484.1,2483.7,0.7837]
[1728857508576,4.02576,2484.0,2483.7,0.7837]
[1728857509377,4.02596,2483.9,2483.5,0.7597]
[1728857510704,4.02596,2483.9,2483.6,0.08888062]
[1728857511016,4.02625,2483.7,2483.6,0.08888062]
[1728857511504,4.02625,2483.7,2483.2,0.8293]
[1728857511505,4.02641,2483.6,2483.2,0.8293]
[1728857512622,4.02625,2483.7,2483.2,4.85634]
[1728857512817,4.02625,2483.7,2483.2,8.8833]
[1728857513304,4.02625,2483.7,2483.2,4.85626]
[1728857513506,4.02625,2483.7,2483.2,10.11328618]
[1728857514038,4.02625,2483.7,2483.2,6.08630618]
[1728857514410,4.02625,2483.7,2483.2,10.11328618]
[1728857515298,4.02625,2483.7,2483.2,6.08630618]
[1728857515500,4.02625,2483.7,2483.2,10.11327618]
[1728857515953,4.02625,2483.7,2483.3,1.3530218]
[1728857516437,4.795,2483.8,2483.3,5.3797918]
[1728857516738,4.0261,2483.8,2483.3,5.3797918]
[1728857518499,3.0,2484.0,2483.7,0.8099]
[1728857518937,4.0257,2484.1,2483.7,0.8099]
[1728857519455,7.44,2484.2,2483.9,4.02582]
[1728857520551,7.44,2484.2,2483.8,4.02593]
[1728857520838,7.44,2484.2,2483.8,8.05191]
[1728857521144,7.44,2484.2,2484.0,4.02573]
[1728857521327,4.02512,2484.4,2484.0,4.02573]
[1728857522229,8.05035,2484.4,2483.9,4.02592]
[1728857522433,4.02517,2484.4,2483.9,4.99453962]
[1728857522950,4.02538,2484.3,2483.9,0.96870962]
[1728857523408,4.02517,2484.4,2483.9,4.99460962]
[1728857523739,8.05044,2484.4,2483.9,4.99460962]
[1728857523911,4.02529,2484.3,2483.9,0.96870962]
[1728857524739,5.44747516,2484.7,2483.7,1.63521618]
[1728857524740,4.02546,2484.2,2483.7,1.63521618]
[1728857524964,4.02583,2484.0,2483.4,7.4435218]
[1728857525120,8.05169,2484.0,2483.5,0.7775]
[1728857525442,8.05169,2484.0,2483.6,0.08864938]
[1728857525737,4.02583,2484.0,2483.6,0.08864938]
[1728857526039,4.0256,2484.1,2483.6,4.11503938]
[1728857526239,4.02541,2484.3,2483.8,4.02594]
[1728857526404,8.68851516,2484.4,2483.8,4.02594]
[1728857526405,7.02522,2484.4,2483.9,4.506234]
[1728857526606,4.02529,2484.3,2484.0,0.08870719]
[1728857527114,7.02513,2484.4,2484.0,0.08870719]
[1728857527346,5.68823516,2484.5,2484.0,4.11438719]
[1728857527551,4.02496,2484.5,2484.0,5.31815149]
[1728857528167,4.02496,2484.5,2484.1,0.7689]
[1728857528680,5.68823516,2484.5,2484.2,0.08863493]
[1728857528837,4.02496,2484.5,2484.2,0.08863493]
[1728857529037,5.68819516,2484.6,2484.2,0.08863493]
[1728857529268,7.02495,2484.5,2484.2,0.08863493]
[1728857529433,4.02527,2484.3,2484.2,0.08863493]
[1728857529779,4.79537,2484.3,2484.2,0.08863493]
[1728857529943,4.0258,2484.0,2483.6,0.8253]
[1728857530474,4.0258,2484.0,2483.7,0.08859881]
[1728857530829,1.66327516,2484.2,2483.7,0.08859881]
[1728857530830,4.66327516,2484.2,2483.7,0.08859881]
[1728857531100,4.15707534,2484.1,2483.7,0.08859881]
[1728857531284,4.15707534,2484.1,2483.3,4.82407]
[1728857531285,4.02608,2483.8,2483.3,4.82407]
[1728857532290,4.02608,2483.8,2483.3,0.7972]
[1728857532638,4.02625,2483.7,2483.3,4.82408]
[1728857532854,1.66327516,2484.0,2483.3,4.82408]
[1728857532855,4.0261,2483.8,2483.3,4.82408]
[1728857533053,4.0261,2483.8,2483.3,6.05087618]
[1728857533765,4.02593,2483.9,2483.4,4.02672]
[1728857533977,4.02593,2483.9,2483.4,4.02665]
[1728857534761,4.02586,2484.0,2483.4,4.02665]
[1728857534967,4.02586,2484.0,2483.5,7.4434418]
[1728857535164,4.02586,2484.0,2483.5,4.7663506]
[1728857535370,4.02586,2484.0,2483.5,8.7929006]
[1728857535664,4.02586,2484.0,2483.6,4.82659]
[1728857536006,4.02576,2484.0,2483.6,0.8002]
[1728857536997,8.05162,2484.0,2483.6,0.8002]
[1728857537153,4.02576,2484.0,2483.6,0.8002]
[1728857537490,4.02576,2484.0,2483.6,4.8266]
[1728857537691,8.68888516,2484.1,2483.6,9.87314288]
[1728857537895,8.68888516,2484.1,2483.6,5.84674288]
[1728857538066,4.66327516,2484.1,2483.3,0.764]
[1728857538269,4.02639,2483.7,2483.3,0.764]
[1728857538475,4.78683,2483.8,2483.3,4.79087]
[1728857538797,5.68912516,2484.0,2483.4,4.0267]
[1728857538798,4.02594,2483.9,2483.4,4.0267]
[1728857539354,2.42387516,2484.0,2483.6,4.02639]
[1728857539671,4.02585,2484.0,2483.7,0.402639]
[1728857539862,4.02585,2484.0,2483.5,8.05292]
[1728857540189,5.68912516,2484.0,2483.5,4.02644]
[1728857540391,9.71500516,2484.0,2483.5,4.02644]
[1728857540700,5.68912516,2484.0,2483.6,0.08880835]
[1728857541195,5.68912516,2484.0,2483.4,4.0267]
[1728857541350,4.02592,2483.9,2483.7,0.08898904]
[1728857541549,5.68912516,2484.0,2483.5,4.02644]
[1728857541796,5.68912516,2484.0,2483.8,0.08899627]
[1728857541986,5.68912516,2484.0,2483.5,4.02644]
[1728857542157,5.68912516,2484.0,2483.6,4.0264]
[1728857542361,1.66327516,2484.1,2483.7,0.89999627]
[1728857542656,1.66327516,2484.3,2483.9,3.4169418]
[1728857542892,9.10327516,2484.5,2484.2,0.811]
[1728857543096,1.66327516,2484.5,2484.2,0.811]
[1728857543302,4.0249,2484.6,2484.3,0.08898904]
[1728857543894,8.0492,2484.8,2484.4,0.08898904]
[1728857544101,1.63108,2484.8,2484.4,0.08898904]
[1728857544260,4.02464,2484.7,2484.2,4.83643]
[1728857544456,4.02464,2484.7,2484.5,0.08865664]
[1728857544661,5.71411774,2484.7,2484.2,4.83642]
[1728857545059,5.71411774,2484.7,2484.3,0.08864942]
[1728857545259,5.71411774,2484.7,2484.2,4.83642]
[1728857545472,5.71411774,2484.7,2484.2,6.06424318]
[1728857545696,5.71411774,2484.7,2484.3,0.08864942]
[1728857545898,1.68947774,2484.7,2484.3,0.08864942]
[1728857546150,1.68947774,2484.8,2484.6,4.0247]
[1728857546256,1.68947774,2485.0,2484.7,0.7536]
[1728857546600,26.23798661,2485.3,2484.9,4.02421]
[1728857546601,1.68947774,2485.2,2484.9,4.02421]
[1728857546804,9.12947774,2485.3,2484.9,4.02421]
[1728857546962,11.46375,2485.3,2484.7,13.44156598]
[1728857547158,11.46375,2485.3,2484.8,0.08836047]
[1728857548176,11.46375,2485.3,2484.8,4.11280047]
[1728857548471,7.44,2485.3,2484.8,4.11280047]
[1728857548688,7.44,2485.3,2484.9,4.02429]
[1728857548984,7.44,2485.3,2484.8,1.35298565]
[1728857549388,7.44,2485.3,2484.9,0.08836047]
[1728857549703,7.44,2485.3,2484.9,4.11258047]
[1728857549935,7.44,2485.3,2484.9,0.08836047]
[1728857550207,11.46368,2485.3,2484.9,0.08836047]
[1728857551902,4.02368,2485.3,2484.9,0.08836047]
[1728857553823,4.0235,2485.4,2484.9,0.08836047]
[1728857554129,12.23946,2485.8,2485.1,7.4408818]
[1728857554282,8.82246,2485.8,2485.1,7.4408818]
[1728857554476,8.82246,2485.8,2485.2,0.08673551]
[1728857554477,4.79946,2485.8,2485.2,0.08673551]
[1728857554821,4.02301,2485.7,2485.2,4.02373]
[1728857555037,4.02301,2485.7,2485.3,0.08673551]
[1728857555173,4.79946,2485.8,2485.3,0.08673551]
[1728857555377,4.79946,2485.8,2485.3,4.11038551]
[1728857556294,4.79943,2485.8,2485.3,0.08673551]
[1728857556492,4.79943,2485.8,2485.3,4.11035551]
[1728857556717,4.79943,2485.8,2485.3,4.77634973]
[1728857556946,4.02262,2486.0,2485.4,0.84413551]
[1728857557293,4.02262,2486.0,2485.5,4.02319]
[1728857557824,4.02246,2486.1,2485.6,4.08791484]
[1728857558599,1.20997636,2486.9,2486.3,4.02191]
[1728857558804,8.64207371,2487.1,2486.6,3.4169418]
[1728857558805,4.02085,2487.1,2486.6,3.4169418]
[1728857559105,4.02076,2487.1,2486.7,0.08384433]
[1728857559291,4.02108,2486.9,2486.7,0.08384433]
[1728857559695,4.02108,2486.9,2486.4,0.8165]
[1728857560019,4.02132,2486.8,2486.4,0.8165]
[1728857560179,4.0214,2486.7,2486.5,0.08384433]
[1728857560781,4.02114,2486.9,2486.5,0.08384433]
[1728857561002,0.5198616,2486.9,2486.5,0.08384433]
[1728857561203,4.02083,2487.1,2486.6,3.4169418]
[1728857561424,4.02092,2487.0,2486.6,3.3669418]
[1728857561628,4.02092,2487.0,2486.7,0.08384433]
[1728857562326,4.02083,2487.1,2486.7,0.08384433]
[1728857562630,8.04172,2487.1,2486.7,0.08384433]
[1728857562777,4.02083,2487.1,2486.7,0.08384433]
[1728857563179,4.02083,2487.1,2486.4,4.2334418]
[1728857563180,4.02116,2486.9,2486.4,4.2334418]
[1728857563384,4.02139,2486.8,2486.5,0.08384433]
[1728857563585,4.02142,2486.7,2486.5,0.08384433]
[1728857564624,4.02155,2486.6,2486.5,0.08384433]
[1728857564924,4.02172,2486.5,2486.1,0.7942]
[1728857565543,4.02172,2486.5,2486.2,0.08281279]
[1728857565875,0.804321,2486.5,2486.2,0.08281279]
[1728857566030,4.02204,2486.3,2486.2,0.08281279]
[1728857566233,4.02204,2486.3,2485.9,0.7879]
[1728857566543,4.02241,2486.1,2486.0,0.08281279]
[1728857566925,4.02204,2486.3,2486.0,0.08281279]
[1728857566926,4.0222,2486.2,2486.0,0.08281279]
[1728857568115,8.04456,2486.2,2486.0,0.08281279]
[1728857568343,4.0222,2486.2,2486.0,0.08281279]
[1728857568857,4.02236,2486.1,2486.0,0.08281279]
[1728857569227,4.02284,2485.9,2485.7,0.7823]
[1728857569446,4.78635,2486.3,2485.4,3.4169418]
[1728857569447,4.02299,2485.8,2485.4,0.7823]
[1728857570167,4.02378,2485.3,2484.8,0.7823]
[1728857570366,4.02345,2485.5,2484.8,4.1992418]
[1728857570574,4.02366,2485.3,2484.9,0.08281279]
[1728857570859,4.024,2485.1,2484.9,0.08281279]
[1728857571559,4.02414,2485.0,2484.9,0.08281279]